fUST/lending_fUST_20250731
["ID","MTS","AMOUNT","RATE_DAILY","PERIOD"]
[376344946,1753944643006,-460.0,0.00019726,2]
[376344948,1753944643015,-460.0,0.00019726,2]
[376344950,1753944643024,-460.0,0.00019726,2]
[376344952,1753944643033,-460.0,0.00019726,2]
[376344955,1753944643042,-460.0,0.00019726,2]
[376344958,1753944643051,-460.0,0.00019726,2]
[376344961,1753944643060,-1846.16,0.00019726,2]
[376344962,1753944643071,-500.0,0.00019793,2]
[376344964,1753944643080,-15000.0,0.000198,20]
[376344967,1753944643089,-317.0,0.00019811,2]
[376344969,1753944643099,-3145.86011714,0.000199,2]
[376344971,1753944643108,-1000.0,0.00019921,2]
[376344973,1753944643118,-500.0,0.00019921,2]
[376344975,1753944643127,-500.0,0.00019921,2]
[376344977,1753944643136,-1000.0,0.00019921,2]
[376344979,1753944643145,-504.85790709,0.00019921,2]
[376344981,1753944643154,-549.5844987,0.00019921,2]
[376344983,1753944643163,-664.89369169,0.00019921,2]
[376344985,1753944643173,-460.0,0.00019967,2]
[376344987,1753944643182,-398.80397066,0.00019967,2]
[376344989,1753944643192,-460.0,0.0002,2]
[376344991,1753944643203,-460.0,0.0002,2]
[376344993,1753944643212,-460.0,0.0002,2]
[376344995,1753944643223,-460.0,0.0002,2]
[376344997,1753944643233,-460.0,0.0002,2]
[376344999,1753944643243,-151.0,0.0002,2]
[376345001,1753944643252,-460.0,0.0002,2]
[376345003,1753944643262,-460.0,0.0002,2]
[376345005,1753944643271,-151.0,0.0002,2]
[376345007,1753944643281,-151.0,0.0002,2]
[376345010,1753944643290,-460.0,0.0002,2]
[376345012,1753944643300,-460.0,0.0002,2]
[376345014,1753944643309,-460.0,0.0002,2]
[376345016,1753944643318,-460.0,0.0002,2]
[376345018,1753944643327,-460.0,0.0002,2]
[376345020,1753944643336,-151.0,0.0002,2]
[376345022,1753944643346,-151.0,0.0002,2]
[376345023,1753944643355,-460.0,0.0002,2]
[376345026,1753944643364,-460.0,0.0002,2]
[376345027,1753944643373,-1739.88,0.0002,2]
[376345029,1753944643383,-1017.99,0.0002,2]
[376345031,1753944643392,-151.0,0.0002,2]
[376345034,1753944643402,-460.0,0.0002,2]
[376345036,1753944643411,-460.0,0.0002,2]
[376345038,1753944643420,-460.0,0.0002,2]
[376345040,1753944643430,-90.31837805,0.0002,2]
[376345055,1753944643570,-922.54162195,0.0002,2]
[376345057,1753944643579,-460.0,0.0002,2]
[376345059,1753944643589,-967.98,0.0002,2]
[376345061,1753944643600,-460.0,0.0002,2]
[376345063,1753944643610,-460.0,0.0002,2]
[376345065,1753944643619,-1027.1,0.0002,2]
[376345067,1753944643628,-460.0,0.0002,2]
[376345069,1753944643637,-891.09127906,0.0002,2]
[376345071,1753944643649,-56.39872094,0.0002,2]
[376345073,1753944643658,-216.80005108,0.0002,2]
[376345102,1753944643916,-630.88445096,0.00019177,2]
[376345104,1753944643926,-163.97718451,0.00019177,2]
[376345106,1753944643935,-385.61278347,0.00019177,2]
[376345109,1753944643949,-114.38721653,0.00019177,2]
[376345111,1753944643959,-500.0,0.00019177,2]
[376345113,1753944643968,-159.49278347,0.00019177,2]
[376345933,1753944747331,236.43461546,0.00018506,2]
[376345934,1753944810278,150.0,0.000189,2]
[376345937,1753945037137,7184.61572095,0.00018151,2]
[376345938,1753945037163,1324.20766005,0.00018151,2]
[376345939,1753945040652,225.13567611,0.00018967,2]
[376345940,1753945060779,-177.779812,0.00019067,2]
[376345941,1753945150247,-159.31301254,0.00019067,2]
[376345942,1753945151997,-225.12736346,0.00019067,2]
[376345943,1753945153296,166.689837,0.00019001,2]
[376345944,1753945155336,-157.779812,0.00019067,2]
[376345945,1753945155361,-42.220188,0.00019067,2]
[376345946,1753945157073,-257.779812,0.00019067,2]
[376345947,1753945157099,-2.220188,0.00019068,3]
[376345948,1753945159353,-170.67235025,0.00019068,3]
[376345949,1753945161088,-596.06235025,0.00019068,3]
[376345950,1753945169436,1451.86206396,0.00019001,2]
[376345951,1753945185094,-340.0,0.00019068,3]
[376345952,1753945187508,-205.8351115,0.00019068,3]
[376345953,1753945187533,-323.49253825,0.00019068,3]
[376345954,1753945200162,869.32764975,0.00019001,2]
[376345955,1753945454227,5962.77711313,0.00018125,2]
[376345956,1753945454252,10000.0,0.00018125,2]
[376345957,1753945454276,8937.22288687,0.00018125,2]
[376345959,1753945509816,1062.77711313,0.00019,2]
[376345960,1753945509840,10000.0,0.00019,2]
[376345961,1753945509864,10000.0,0.00019,2]
[376345962,1753945509888,4362.09028923,0.00019,2]
[376345963,1753945537028,3793.86725472,0.00019001,2]
[376345966,1753945617336,228.213424,0.00013699,2]
[376345967,1753945651139,1615.82903205,0.00019,2]
[376345968,1753945651168,3411.57096795,0.00019,2]
[376345969,1753945680979,386.637611,0.00018072,2]
[376345970,1753945693104,206.74848184,0.00018968,2]
[376346028,1753945832446,-160.0,0.00019049,2]
[376346029,1753945832458,-151.0,0.00019067,2]
[376346030,1753945832467,-151.0,0.00019067,2]
[376346031,1753945832477,-151.0,0.00019067,2]
[376346032,1753945832486,-151.0,0.00019067,2]
[376346033,1753945832496,-277.00605941,0.00019067,2]
[376346034,1753945832505,-300.0,0.00019067,2]
[376346035,1753945832515,-1041.74,0.00019068,3]
[376346036,1753945832524,-520.87,0.00019068,3]
[376346037,1753945832534,-260.44,0.00019068,3]
[376346038,1753945832543,-781.33,0.00019068,3]
[376346039,1753945832552,-5352.80428278,0.00019073,2]
[376346040,1753945832562,-370000.0,0.00019078,2]
[376346041,1753945832571,-500.0,0.00019173,2]
[376346042,1753945832580,-427.32035153,0.00019173,2]
[376346043,1753945832590,-512.58752256,0.00019173,2]
[376346045,1753945832599,-500.0,0.00019173,2]
[376346047,1753945832608,-500.0,0.00019173,2]
[376346048,1753945832617,-500.0,0.00019173,2]
[376346050,1753945832627,-500.0,0.00019173,2]
[376346053,1753945832637,-500.0,0.00019173,2]
[376346055,1753945832647,-500.0,0.00019173,2]
[376346057,1753945832656,-501.99621775,0.00019173,2]
[376346058,1753945832666,-502.94869412,0.00019173,2]
[376346059,1753945832675,-500.0,0.00019173,2]
[376346060,1753945832685,-502.04510931,0.00019173,2]
[376346061,1753945832694,-502.29650842,0.00019173,2]
[376346062,1753945832704,-183.60558302,0.00019177,2]
[376346063,1753945832714,-500.0,0.00019177,2]
[376346064,1753945832724,-500.0,0.00019177,2]
[376346065,1753945832733,-500.0,0.00019177,2]
[376346066,1753945832743,-500.0,0.00019177,2]
[376346067,1753945832753,-500.0,0.00019177,2]
[376346068,1753945832763,-500.0,0.00019177,2]
[376346069,1753945832773,-500.0,0.00019177,2]
[376346070,1753945832782,-500.0,0.00019177,2]
[376346071,1753945832791,-500.0,0.00019177,2]
[376346072,1753945832801,-500.0,0.00019177,2]
[376346073,1753945832810,-500.0,0.00019177,2]
[376346074,1753945832819,-183.25418666,0.00019177,2]
[376346075,1753945832829,-500.0,0.00019177,2]
[376346076,1753945832838,-428.27793067,0.00019177,2]
[376346077,1753945832847,-500.0,0.00019177,2]
[376346078,1753945832857,-500.0,0.00019177,2]
[376346079,1753945832866,-500.0,0.00019177,2]
[376346080,1753945832876,-500.0,0.00019177,2]
[376346081,1753945832885,-500.0,0.00019177,2]
[376346082,1753945832895,-500.0,0.00019177,2]
[376346083,1753945832905,-599.79455147,0.00019177,2]
[376346084,1753945832914,-373.54418214,0.00019178,2]
[376346085,1753945832924,-460.0,0.00019178,2]
[376346086,1753945832933,-460.0,0.00019178,2]
[376346087,1753945832942,-460.0,0.00019178,2]
[376346088,1753945832952,-460.0,0.00019178,2]
[376346089,1753945832961,-460.0,0.00019178,2]
[376346090,1753945832971,-460.0,0.00019178,2]
[376346091,1753945832980,-460.0,0.00019178,2]
[376346092,1753945832989,-460.0,0.00019178,2]
[376346093,1753945832999,-460.0,0.00019178,2]
[376346094,1753945833007,-460.0,0.00019178,2]
[376346095,1753945833017,-460.0,0.00019178,2]
[376346096,1753945833026,-460.0,0.00019178,2]
[376346097,1753945833036,-460.0,0.00019178,2]
[376346098,1753945833046,-460.0,0.00019178,2]
[376346099,1753945833056,-460.0,0.00019178,2]
[376346100,1753945833065,-460.0,0.00019178,2]
[376346101,1753945833075,-460.0,0.00019178,2]
[376346102,1753945833084,-460.0,0.00019178,2]
[376346103,1753945833094,-460.0,0.00019178,2]
[376346104,1753945833103,-500.0,0.00019178,2]
[376346105,1753945833114,-500.0,0.00019178,2]
[376346106,1753945833123,-500.0,0.00019178,2]
[376346107,1753945833135,-461.64352615,0.00019178,2]
[376346108,1753945833145,-500.0,0.00019178,2]
[376346109,1753945833154,-461.06615853,0.00019178,2]
[376346110,1753945833164,-460.0,0.00019178,2]
[376346111,1753945833174,-460.0,0.00019178,2]
[376346112,1753945833184,-460.0,0.00019178,2]
[376346113,1753945833194,-461.10184082,0.00019178,2]
[376346114,1753945833203,-460.0,0.00019178,2]
[376346115,1753945833212,-460.0,0.00019178,2]
[376346116,1753945833222,-460.0,0.00019178,2]
[376346117,1753945833232,-460.0,0.00019178,2]
[376346118,1753945833243,-460.0,0.00019178,2]
[376346119,1753945833253,-460.0,0.00019178,2]
[376346120,1753945833262,-460.0,0.00019178,2]
[376346121,1753945833272,-460.0,0.00019178,2]
[376346122,1753945833280,-460.0,0.00019178,2]
[376346123,1753945833290,-461.05697295,0.00019178,2]
[376346124,1753945833299,-460.0,0.00019178,2]
[376346125,1753945833308,-460.0,0.00019178,2]
[376346126,1753945833317,-284.59094366,0.00019178,2]
[376346127,1753945833326,-417.15554263,0.00019178,2]
[376346128,1753945833336,-460.0,0.00019178,2]
[376346129,1753945833345,-460.0,0.00019178,2]
[376346130,1753945833354,-460.0,0.00019178,2]
[376346131,1753945833363,-460.0,0.00019178,2]
[376346132,1753945833373,-434.10630439,0.00019178,2]
[376346133,1753945833383,-460.0,0.00019178,2]
[376346134,1753945833393,-460.0,0.00019178,2]
[376346135,1753945833403,-432.37550925,0.00019178,2]
[376346136,1753945833412,-460.0,0.00019178,2]
[376346137,1753945833422,-460.0,0.00019178,2]
[376346138,1753945833433,-460.0,0.00019178,2]
[376346139,1753945833443,-460.0,0.00019178,2]
[376346140,1753945833453,-460.0,0.00019178,2]
[376346141,1753945833464,-460.0,0.00019178,2]
[376346142,1753945833473,-295.00042151,0.00019178,2]
[376346143,1753945833483,-460.0,0.00019178,2]
[376346144,1753945833492,-460.0,0.00019178,2]
[376346145,1753945833502,-460.0,0.00019178,2]
[376346146,1753945833512,-460.0,0.00019178,2]
[376346147,1753945833522,-460.0,0.00019178,2]
[376346148,1753945833532,-513.84579562,0.00019178,2]
[376346149,1753945833542,-460.0,0.00019178,2]
[376346150,1753945833551,-460.0,0.00019178,2]
[376346151,1753945833561,-460.0,0.00019178,2]
[376346152,1753945833570,-460.0,0.00019178,2]
[376346153,1753945833581,-461.31804947,0.00019178,2]
[376346154,1753945833591,-460.0,0.00019178,2]
[376346155,1753945833600,-277.04636752,0.00019178,2]
[376346156,1753945833610,-460.0,0.00019178,2]
[376346157,1753945833620,-460.0,0.00019178,2]
[376346158,1753945833630,-460.0,0.00019178,2]
[376346159,1753945833640,-460.0,0.00019178,2]
[376346160,1753945833650,-461.57426019,0.00019178,2]
[376346161,1753945833659,-216.65327511,0.00019178,2]
[376346162,1753945833669,-460.0,0.00019178,2]
[376346163,1753945833678,-460.0,0.00019178,2]
[376346164,1753945833688,-460.0,0.00019178,2]
[376346165,1753945833697,-464.77089276,0.00019178,2]
[376346166,1753945833707,-460.0,0.00019178,2]
[376346167,1753945833716,-460.0,0.00019178,2]
[376346168,1753945833725,-460.0,0.00019178,2]
[376346169,1753945833736,-460.0,0.00019178,2]
[376346170,1753945833745,-460.0,0.00019178,2]
[376346171,1753945833755,-444.60619409,0.00019178,2]
[376346172,1753945833765,-470.48037671,0.00019178,2]
[376346173,1753945833775,-460.0,0.00019178,2]
[376346174,1753945833784,-291.85016193,0.00019178,2]
[376346175,1753945833793,-460.0,0.00019178,2]
[376346176,1753945833802,-460.0,0.00019178,2]
[376346177,1753945833810,-460.0,0.00019178,2]
[376346178,1753945833818,-460.0,0.00019178,2]
[376346179,1753945833828,-460.0,0.00019178,2]
[376346180,1753945833837,-460.0,0.00019178,2]
[376346181,1753945833847,-460.0,0.00019178,2]
[376346182,1753945833856,-460.0,0.00019178,2]
[376346183,1753945833865,-460.0,0.00019178,2]
[376346184,1753945833874,-460.0,0.00019178,2]
[376346185,1753945833884,-460.0,0.00019178,2]
[376346186,1753945833893,-460.0,0.00019178,2]
[376346187,1753945833903,-462.80157234,0.00019178,2]
[376346188,1753945833912,-460.0,0.00019178,2]
[376346189,1753945833922,-460.0,0.00019178,2]
[376346190,1753945833931,-239.39908886,0.00019178,2]
[376346191,1753945833940,-460.0,0.00019178,2]
[376346192,1753945833950,-460.0,0.00019178,2]
[376346193,1753945833960,-460.0,0.00019178,2]
[376346194,1753945833969,-460.0,0.00019178,2]
[376346195,1753945833979,-461.18665707,0.00019178,2]
[376346196,1753945833988,-460.0,0.00019178,2]
[376346197,1753945833997,-460.0,0.00019178,2]
[376346198,1753945834007,-460.0,0.00019178,2]
[376346199,1753945834016,-469.68726312,0.00019178,2]
[376346200,1753945834026,-460.0,0.00019178,2]
[376346201,1753945834036,-250.54429874,0.00019178,2]
[376346202,1753945834046,-460.0,0.00019178,2]
[376346203,1753945834056,-460.0,0.00019178,2]
[376346204,1753945834065,-460.49701878,0.00019178,2]
[376346205,1753945834076,-460.0,0.00019178,2]
[376346206,1753945834086,-460.0,0.00019178,2]
[376346207,1753945834096,-460.0,0.00019178,2]
[376346208,1753945834105,-460.0,0.00019178,2]
[376346209,1753945834115,-460.0,0.00019178,2]
[376346210,1753945834125,-460.0,0.00019178,2]
[376346211,1753945834137,-460.0,0.00019178,2]
[376346212,1753945834147,-460.0,0.00019178,2]
[376346213,1753945834156,-460.0,0.00019178,2]
[376346214,1753945834166,-1123.12,0.00019178,2]
[376346215,1753945834177,-460.0,0.00019178,2]
[376346216,1753945834186,-1686.55,0.00019178,2]
[376346217,1753945834196,-460.0,0.00019178,2]
[376346218,1753945834207,-460.0,0.00019178,2]
[376346219,1753945834218,-460.0,0.00019178,2]
[376346220,1753945834228,-460.0,0.00019178,2]
[376346221,1753945834237,-460.0,0.00019178,2]
[376346222,1753945834246,-460.0,0.00019178,2]
[376346223,1753945834256,-460.0,0.00019178,2]
[376346224,1753945834265,-460.0,0.00019178,2]
[376346225,1753945834273,-460.0,0.00019178,2]
[376346226,1753945834281,-460.0,0.00019178,2]
[376346227,1753945834289,-460.0,0.00019178,2]
[376346228,1753945834298,-465.85782512,0.00019178,2]
[376346229,1753945834305,-460.0,0.00019178,2]
[376346230,1753945834314,-941.51,0.00019178,2]
[376346231,1753945834323,-460.0,0.00019178,2]
[376346232,1753945834333,-2642.31,0.00019178,2]
[376346233,1753945834343,-460.0,0.00019178,2]
[376346234,1753945834352,-460.0,0.00019178,2]
[376346235,1753945834362,-932.22,0.00019178,2]
[376346236,1753945834371,-460.0,0.00019178,2]
[376346237,1753945834380,-464.62487903,0.00019178,2]
[376346238,1753945834389,-1008.65,0.00019178,2]
[376346239,1753945834399,-460.0,0.00019178,2]
[376346240,1753945834408,-460.0,0.00019178,2]
[376346241,1753945834418,-460.0,0.00019178,2]
[376346242,1753945834428,-460.0,0.00019178,2]
[376346243,1753945834437,-276.0464847,0.00019178,2]
[376346244,1753945834446,-884.12,0.00019178,2]
[376346245,1753945834455,-632.32,0.00019178,2]
[376346246,1753945834466,-460.0,0.00019178,2]
[376346247,1753945834475,-460.0,0.00019178,2]
[376346248,1753945834485,-460.0,0.00019178,2]
[376346249,1753945834494,-460.0,0.00019178,2]
[376346250,1753945834504,-460.0,0.00019178,2]
[376346251,1753945834514,-460.86866173,0.00019178,2]
[376346252,1753945834523,-460.0,0.00019178,2]
[376346253,1753945834533,-460.0,0.00019178,2]
[376346254,1753945834543,-460.0,0.00019178,2]
[376346255,1753945834552,-460.0,0.00019178,2]
[376346256,1753945834562,-460.0,0.00019178,2]
[376346257,1753945834571,-460.0,0.00019178,2]
[376346258,1753945834581,-460.0,0.00019178,2]
[376346259,1753945834590,-460.0,0.00019178,2]
[376346260,1753945834600,-809.15,0.00019178,2]
[376346261,1753945834610,-460.0,0.00019178,2]
[376346262,1753945834620,-460.0,0.00019178,2]
[376346263,1753945834629,-460.0,0.00019178,2]
[376346264,1753945834639,-460.0,0.00019178,2]
[376346265,1753945834648,-460.0,0.00019178,2]
[376346266,1753945834657,-460.0,0.00019178,2]
[376346267,1753945834667,-897.95,0.00019178,2]
[376346268,1753945834676,-460.0,0.00019178,2]
[376346269,1753945834686,-975.57,0.00019178,2]
[376346270,1753945834695,-460.0,0.00019178,2]
[376346271,1753945834705,-460.0,0.00019178,2]
[376346272,1753945834715,-460.0,0.00019178,2]
[376346273,1753945834725,-460.0,0.00019178,2]
[376346274,1753945834735,-460.0,0.00019178,2]
[376346275,1753945834744,-915.87,0.00019178,2]
[376346276,1753945834754,-460.0,0.00019178,2]
[376346277,1753945834763,-460.0,0.00019178,2]
[376346278,1753945834772,-676.7,0.00019178,2]
[376346279,1753945834781,-458.51261916,0.00019178,2]
[376346280,1753945834791,-460.0,0.00019178,2]
[376346281,1753945834800,-460.0,0.00019178,2]
[376346282,1753945834810,-460.0,0.00019178,2]
[376346283,1753945834819,-465.10083028,0.00019178,2]
[376346284,1753945834828,-460.0,0.00019178,2]
[376346285,1753945834837,-460.0,0.00019178,2]
[376346286,1753945834846,-460.0,0.00019178,2]
[376346287,1753945834855,-462.67934088,0.00019178,2]
[376346288,1753945834867,-460.0,0.00019178,2]
[376346289,1753945834876,-460.0,0.00019178,2]
[376346290,1753945834886,-460.0,0.00019178,2]
[376346291,1753945834896,-569.11,0.00019178,2]
[376346292,1753945834905,-460.0,0.00019178,2]
[376346293,1753945834915,-460.0,0.00019178,2]
[376346294,1753945834924,-460.0,0.00019178,2]
[376346295,1753945834934,-2010.04,0.00019178,2]
[376346296,1753945834943,-460.0,0.00019178,2]
[376346297,1753945834952,-460.0,0.00019178,2]
[376346298,1753945834963,-232.63119231,0.00019178,2]
[376346299,1753945834972,-460.0,0.00019178,2]
[376346300,1753945834982,-500.0,0.00019178,2]
[376346301,1753945834991,-666.0,0.00019178,2]
[376346302,1753945835002,-245.090906,0.00019178,2]
[376346303,1753945835012,-270.69102446,0.00019205,2]
[376346304,1753945835021,-255.0,0.00019205,2]
[376346305,1753945835031,-241.870539,0.00019399,2]
[376346306,1753945835164,-200.0,0.00019448,15]
[376346307,1753945835175,-200.0,0.00019448,15]
[376346308,1753945835184,-200.0,0.00019448,15]
[376346309,1753945835194,-200.0,0.00019448,15]
[376346310,1753945835203,-200.0,0.00019448,15]
[376346311,1753945835214,-200.0,0.00019448,15]
[376346312,1753945835223,-200.0,0.00019448,15]
[376346313,1753945835234,-200.0,0.00019448,15]
[376346314,1753945835243,-460.0,0.00019452,2]
[376346315,1753945835252,-460.0,0.00019452,2]
[376346316,1753945835263,-460.0,0.00019452,2]
[376346317,1753945835274,-460.0,0.00019452,2]
[376346318,1753945835284,-460.0,0.00019452,2]
[376346319,1753945835293,-460.0,0.00019452,2]
[376346320,1753945835302,-460.0,0.00019452,2]
[376346321,1753945835311,-460.0,0.00019452,2]
[376346322,1753945835321,-570.81149047,0.00019452,2]
[376346323,1753945835330,-460.0,0.00019452,2]
[376346324,1753945835340,-460.0,0.00019452,2]
[376346325,1753945835350,-460.0,0.00019452,2]
[376346326,1753945835359,-460.0,0.00019452,2]
[376346327,1753945835368,-460.0,0.00019452,2]
[376346328,1753945835378,-460.0,0.00019452,2]
[376346329,1753945835388,-460.0,0.00019452,2]
[376346330,1753945835397,-460.0,0.00019452,2]
[376346331,1753945835408,-460.0,0.00019452,2]
[376346332,1753945835417,-460.0,0.00019452,2]
[376346333,1753945835427,-460.0,0.00019452,2]
[376346334,1753945835436,-272.86056836,0.00019452,2]
[376346335,1753945835445,-460.0,0.00019452,2]
[376346336,1753945835455,-460.0,0.00019452,2]
[376346337,1753945835465,-460.0,0.00019452,2]
[376346338,1753945835474,-460.0,0.00019452,2]
[376346339,1753945835484,-460.0,0.00019452,2]
[376346340,1753945835493,-460.0,0.00019452,2]
[376346341,1753945835503,-460.0,0.00019452,2]
[376346342,1753945835512,-460.0,0.00019452,2]
[376346343,1753945835521,-596.650706,0.00019452,2]
[376346344,1753945835531,-460.0,0.00019452,2]
[376346345,1753945835540,-460.0,0.00019452,2]
[376346346,1753945835550,-460.0,0.00019452,2]
[376346347,1753945835560,-471.15754207,0.00019452,2]
[376346348,1753945835569,-460.0,0.00019452,2]
[376346349,1753945835579,-460.0,0.00019452,2]
[376346350,1753945835589,-460.0,0.00019452,2]
[376346351,1753945835598,-460.0,0.00019452,2]
[376346352,1753945835607,-1123.12,0.00019452,2]
[376346353,1753945835616,-1686.55,0.00019452,2]
[376346354,1753945835626,-465.9007739,0.00019452,2]
[376346355,1753945835635,-460.0,0.00019452,2]
[376346356,1753945835644,-460.0,0.00019452,2]
[376346357,1753945835654,-460.0,0.00019452,2]
[376346358,1753945835663,-460.0,0.00019452,2]
[376346359,1753945835673,-460.0,0.00019452,2]
[376346360,1753945835683,-460.0,0.00019452,2]
[376346361,1753945835692,-460.0,0.00019452,2]
[376346362,1753945835702,-460.0,0.00019452,2]
[376346363,1753945835711,-460.0,0.00019452,2]
[376346364,1753945835720,-941.51,0.00019452,2]
[376346365,1753945835729,-2642.31,0.00019452,2]
[376346366,1753945835738,-460.0,0.00019452,2]
[376346367,1753945835748,-460.0,0.00019452,2]
[376346368,1753945835757,-932.22,0.00019452,2]
[376346369,1753945835766,-1008.65,0.00019452,2]
[376346370,1753945835775,-460.0,0.00019452,2]
[376346371,1753945835785,-460.0,0.00019452,2]
[376346372,1753945835794,-460.0,0.00019452,2]
[376346373,1753945835803,-370.44,0.00019452,2]
[376346374,1753945835812,-884.12,0.00019452,2]
[376346375,1753945835821,-632.32,0.00019452,2]
[376346376,1753945835830,-460.0,0.00019452,2]
[376346377,1753945835840,-471.7937617,0.00019452,2]
[376346378,1753945835849,-460.0,0.00019452,2]
[376346379,1753945835859,-460.0,0.00019452,2]
[376346380,1753945835869,-460.0,0.00019452,2]
[376346381,1753945835884,-460.0,0.00019452,2]
[376346382,1753945835893,-460.0,0.00019452,2]
[376346383,1753945835903,-460.0,0.00019452,2]
[376346384,1753945835912,-462.57844281,0.00019452,2]
[376346385,1753945835922,-335.46787039,0.00019452,2]
[376346386,1753945835931,-809.15,0.00019452,2]
[376346387,1753945835940,-460.0,0.00019452,2]
[376346388,1753945835949,-460.0,0.00019452,2]
[376346389,1753945835959,-460.0,0.00019452,2]
[376346390,1753945835969,-460.0,0.00019452,2]
[376346391,1753945835978,-897.95,0.00019452,2]
[376346392,1753945835988,-975.57,0.00019452,2]
[376346393,1753945835997,-460.0,0.00019452,2]
[376346394,1753945836006,-460.0,0.00019452,2]
[376346395,1753945836015,-460.0,0.00019452,2]
[376346396,1753945836025,-460.0,0.00019452,2]
[376346397,1753945836035,-460.0,0.00019452,2]
[376346398,1753945836044,-915.87,0.00019452,2]
[376346399,1753945836053,-460.0,0.00019452,2]
[376346400,1753945836063,-676.7,0.00019452,2]
[376346401,1753945836073,-296.85,0.00019452,2]
[376346402,1753945836082,-460.0,0.00019452,2]
[376346403,1753945836091,-460.0,0.00019452,2]
[376346404,1753945836101,-569.11,0.00019452,2]
[376346405,1753945836111,-463.27987226,0.00019452,2]
[376346406,1753945836121,-460.0,0.00019452,2]
[376346407,1753945836130,-460.0,0.00019452,2]
[376346408,1753945836144,-2010.04,0.00019452,2]
[376346409,1753945836154,-460.0,0.00019452,2]
[376346410,1753945836163,-500.0,0.00019473,2]
[376346411,1753945836173,-500.0,0.00019473,2]
[376346412,1753945836184,-531.81224926,0.00019473,2]
[376346413,1753945836194,-507.35990999,0.000195,2]
[376346414,1753945836203,-500.0,0.00019519,2]
[376346415,1753945836213,-151.57197422,0.00019519,2]
[376346416,1753945836223,-1000.0,0.00019721,2]
[376346417,1753945836233,-500.0,0.00019721,2]
[376346418,1753945836242,-1000.0,0.00019721,2]
[376346419,1753945836252,-500.0,0.00019721,2]
[376346420,1753945836262,-500.0,0.00019721,2]
[376346421,1753945836272,-460.0,0.00019726,2]
[376346422,1753945836281,-460.0,0.00019726,2]
[376346423,1753945836291,-460.0,0.00019726,2]
[376346424,1753945836300,-460.0,0.00019726,2]
[376346425,1753945836311,-460.0,0.00019726,2]
[376346426,1753945836320,-460.0,0.00019726,2]
[376346427,1753945836330,-460.0,0.00019726,2]
[376346428,1753945836339,-460.0,0.00019726,2]
[376346429,1753945836348,-460.0,0.00019726,2]
[376346430,1753945836357,-460.0,0.00019726,2]
[376346431,1753945836366,-460.0,0.00019726,2]
[376346432,1753945836375,-460.0,0.00019726,2]
[376346433,1753945836385,-460.0,0.00019726,2]
[376346434,1753945836394,-460.0,0.00019726,2]
[376346435,1753945836404,-460.0,0.00019726,2]
[376346436,1753945836413,-460.0,0.00019726,2]
[376346437,1753945836422,-398.80397066,0.00019726,2]
[376346438,1753945836431,-460.0,0.00019726,2]
[376346439,1753945836441,-460.0,0.00019726,2]